bitfinex-derivatives/quotes_BTCF0:USTF0_20250905
["timestamp","ask_amount","ask_price","bid_price","bid_amount"]
[1757048087052,0.28064011,111510.0,111500.0,0.55202011]
[1757048088652,0.28064011,111510.0,111500.0,0.57202011]
[1757048089653,0.28064011,111510.0,111500.0,0.89202011]
[1757048089851,0.0001,111520.0,111500.0,0.57202011]
[1757048090052,0.0001,111520.0,111500.0,0.32202011]
[1757048090053,0.28064011,111510.0,111500.0,0.32202011]
[1757048093748,0.28064011,111510.0,111500.0,0.30202011]
[1757048094149,0.28064011,111510.0,111500.0,0.91202011]
[1757048094150,0.26476011,111510.0,111500.0,0.91202011]
[1757048094350,0.28074011,111520.0,111510.0,0.03707]
[1757048094654,0.28064011,111520.0,111510.0,0.03707]
[1757048095447,0.25117108,111520.0,111510.0,0.03707]
[1757048095756,0.25217108,111520.0,111510.0,0.03707]
[1757048104256,0.25217108,111520.0,111500.0,0.0134]
[1757048104564,0.25117108,111510.0,111500.0,0.03668]
[1757048105865,0.25117108,111510.0,111500.0,0.03868]
[1757048112280,0.01588,111510.0,111500.0,0.03868]
[1757048112668,0.23539108,111520.0,111510.0,0.01379]
[1757048112982,0.25117108,111520.0,111510.0,0.03707]
[1757048113881,0.25217108,111520.0,111510.0,0.03707]
[1757048119583,0.01688,111520.0,111510.0,0.03707]
[1757048119779,0.001,111520.0,111510.0,0.03707]
[1757048119980,0.01688,111520.0,111510.0,0.03707]
[1757048121181,0.25217108,111520.0,111510.0,0.03707]
[1757048121383,0.01688,111520.0,111510.0,0.03707]
[1757048121575,0.25217108,111520.0,111510.0,0.03707]
[1757048122980,0.01688,111520.0,111510.0,0.03707]
[1757048123176,0.25217108,111520.0,111510.0,0.03707]
[1757048123678,0.01688,111520.0,111510.0,0.03707]
[1757048123881,0.25217108,111520.0,111510.0,0.03707]
[1757048124984,0.01688,111520.0,111510.0,0.03707]
[1757048125385,0.25217108,111520.0,111510.0,0.03707]
[1757048126085,0.01688,111520.0,111510.0,0.03707]
[1757048126284,0.25217108,111520.0,111510.0,0.03707]
[1757048126482,0.01688,111520.0,111510.0,0.03707]
[1757048126685,0.25217108,111520.0,111510.0,0.03707]
[1757048126887,0.01688,111520.0,111510.0,0.03707]
[1757048128392,0.25217108,111520.0,111510.0,0.03707]
[1757048128887,0.01688,111520.0,111510.0,0.03707]
[1757048129087,0.25217108,111520.0,111510.0,0.03707]
[1757048129293,0.01688,111520.0,111510.0,0.03707]
[1757048129694,0.25217108,111520.0,111510.0,0.03707]
[1757048130193,0.01688,111520.0,111510.0,0.03707]
[1757048130394,0.25217108,111520.0,111510.0,0.03707]
[1757048148507,0.01688,111520.0,111510.0,0.03707]
[1757048148805,0.25217108,111520.0,111510.0,0.03707]
[1757048151906,0.25217108,111520.0,111510.0,0.11712858]
[1757048153107,0.01688,111520.0,111510.0,0.11712858]
[1757048154110,0.25217108,111520.0,111510.0,0.11712858]
[1757048156810,0.01688,111520.0,111510.0,0.11712858]
[1757048157007,0.25217108,111520.0,111510.0,0.11712858]
[1757048157407,0.28158054,111520.0,111510.0,0.11712858]
[1757048160215,0.01688,111520.0,111510.0,0.11712858]
[1757048160422,0.28158054,111520.0,111510.0,0.11712858]
[1757048161422,0.28158054,111520.0,111510.0,0.03707]
[1757048164420,0.01688,111520.0,111510.0,0.03707]
[1757048164620,0.28158054,111520.0,111510.0,0.03707]
[1757048176426,0.28158054,111520.0,111510.0,0.11712858]
[1757048179430,0.01688,111520.0,111510.0,0.11712858]
[1757048179628,0.28158054,111520.0,111510.0,0.11712858]
[1757048181934,0.28158054,111520.0,111510.0,0.03707]
[1757048183534,0.28158054,111520.0,111510.0,0.30177054]
[1757048184136,0.28158054,111520.0,111510.0,0.03707]
[1757048192142,0.28158054,111520.0,111510.0,0.11712858]
[1757048202852,0.54628108,111520.0,111510.0,0.11712858]
[1757048203157,0.79928108,111520.0,111500.0,0.09345858]
[1757048203353,0.54528108,111510.0,111500.0,0.11520858]
[1757048203850,0.28058054,111510.0,111500.0,0.11520858]
[1757048204251,0.28058054,111510.0,111500.0,0.11620858]
[1757048204555,0.28058054,111510.0,111500.0,0.11820858]
[1757048205960,0.54528108,111510.0,111500.0,0.11820858]
[1757048210458,0.28058054,111510.0,111500.0,0.11820858]
[1757048211162,0.28058054,111510.0,111500.0,0.03815]
[1757048212349,0.54528108,111510.0,111500.0,0.03815]
[1757048213360,0.54528108,111510.0,111500.0,0.11820858]
[1757048214559,0.54528108,111510.0,111500.0,0.03815]
[1757048219569,0.25122671,111510.0,111500.0,0.03815]
[1757048229079,0.25122671,111510.0,111500.0,0.0164]
[1757048229670,0.25122671,111510.0,111500.0,0.03825]
[1757048238971,0.25122671,111510.0,111500.0,0.003]
[1757048243979,0.01588,111510.0,111500.0,0.003]
[1757048244278,0.25122671,111510.0,111500.0,0.03771]
[1757048246680,0.25122671,111510.0,111500.0,0.39851]
[1757048253088,0.25122671,111510.0,111500.0,0.03771]
[1757048264388,0.25122671,111510.0,111500.0,0.11776858]
[1757048264589,0.25122671,111510.0,111500.0,0.39851]
[1757048264791,0.25122671,111510.0,111500.0,0.47856858]
[1757048269600,0.25122671,111510.0,111500.0,0.11776858]
[1757048269799,0.25122671,111510.0,111500.0,0.47856858]
[1757048270502,1.06478671,111510.0,111500.0,0.47856858]
[1757048272206,1.06478671,111510.0,111500.0,0.39851]
[1757048279517,0.25122671,111510.0,111500.0,0.39851]
[1757048279721,1.06474671,111510.0,111500.0,0.39851]
[1757048281419,1.09414508,111510.0,111500.0,0.39851]
[1757048282219,1.09414508,111510.0,111500.0,0.47856858]
[1757048285627,0.28062508,111510.0,111500.0,0.47856858]
[1757048285924,0.82936,111510.0,111500.0,0.47856858]
[1757048286124,1.09410508,111510.0,111500.0,0.47856858]
[1757048286724,0.28062508,111510.0,111500.0,0.47856858]
[1757048286925,1.09410508,111510.0,111500.0,0.47856858]
[1757048290029,0.01588,111510.0,111500.0,0.47856858]
[1757048290223,1.09410508,111510.0,111500.0,0.47856858]
[1757048292735,0.28062508,111510.0,111500.0,0.47856858]
[1757048292924,1.09406508,111510.0,111500.0,0.47856858]
[1757048294128,0.82932,111510.0,111500.0,0.47856858]
[1757048294330,0.01588,111510.0,111500.0,0.74331366]
[1757048294535,1.5001,111520.0,111510.0,0.03553]
[1757048294536,0.28072508,111520.0,111510.0,0.03553]
[1757048294735,0.28062508,111520.0,111510.0,0.39633]
[1757048295033,0.28062508,111520.0,111510.0,0.66107508]
[1757048296833,0.01588,111520.0,111510.0,0.66107508]
[1757048297033,0.28062508,111520.0,111510.0,0.66107508]
[1757048297339,0.28062508,111520.0,111510.0,0.39633]
[1757048299135,0.01588,111520.0,111510.0,0.39633]
[1757048299438,0.28062508,111520.0,111510.0,0.39633]
[1757048302044,0.01588,111520.0,111510.0,0.39633]
[1757048302245,0.28062508,111520.0,111510.0,0.39633]
[1757048303246,0.28062508,111520.0,111510.0,0.66107508]
[1757048303846,0.28062508,111520.0,111510.0,0.39633]
[1757048306144,0.28062508,111520.0,111510.0,0.67900605]
[1757048306145,0.01588,111520.0,111510.0,0.67900605]
[1757048306341,1.09404508,111530.0,111520.0,0.03584]
[1757048306546,1.09394508,111530.0,111520.0,0.66138508]
[1757048306943,1.09394508,111530.0,111520.0,0.39664]
[1757048307146,0.01588,111530.0,111520.0,0.66138508]
[1757048307446,0.28162508,111530.0,111520.0,0.66138508]
[1757048307749,0.28262508,111530.0,111520.0,0.66138508]
[1757048310348,0.28262508,111530.0,111520.0,0.39664]
[1757048310547,0.28262508,111530.0,111520.0,0.66138508]
[1757048310748,0.28262508,111530.0,111520.0,0.7321887]
[1757048310947,0.01788,111530.0,111520.0,0.7321887]
[1757048311248,0.28262508,111530.0,111520.0,0.7321887]
[1757048318154,0.28262508,111530.0,111520.0,0.46744362]
[1757048320654,0.28262508,111530.0,111520.0,0.39664]
[1757048323543,0.01788,111530.0,111520.0,0.39664]
[1757048323959,0.28262508,111530.0,111520.0,0.39664]
[1757048336882,0.01788,111530.0,111520.0,0.39664]
[1757048337183,0.28262508,111530.0,111520.0,0.39664]
[1757048341981,0.53562508,111530.0,111510.0,0.45415858]
[1757048342184,1.09366508,111520.0,111510.0,0.39597]
[1757048343587,1.06423609,111520.0,111510.0,0.39597]
[1757048348391,1.06423609,111520.0,111510.0,0.47602858]
[1757048350091,1.42503609,111520.0,111510.0,0.03517]
[1757048350692,2.92503609,111520.0,111510.0,0.03517]
[1757048351090,1.42503609,111520.0,111510.0,0.03517]
[1757048351491,1.42703609,111520.0,111510.0,0.03517]
[1757048352687,1.06623609,111520.0,111510.0,0.03517]
[1757048353196,1.06619609,111520.0,111510.0,0.03517]
[1757048360996,1.06619609,111520.0,111510.0,0.39597]
[1757048361201,0.25319609,111520.0,111510.0,0.39597]
[1757048361392,0.83088,111520.0,111510.0,0.64597]
[1757048363299,0.01788,111520.0,111510.0,0.64597]
[1757048363902,0.25319609,111520.0,111510.0,0.64597]
[1757048364301,0.01788,111520.0,111510.0,0.64597]
[1757048364601,0.25319609,111520.0,111510.0,0.64597]
[1757048364802,0.01788,111520.0,111510.0,0.64597]
[1757048368104,0.25319609,111520.0,111510.0,0.64597]
[1757048381714,0.25319609,111520.0,111510.0,0.39597]
[1757048381910,1.09931218,111520.0,111510.0,0.03517]
[1757048382110,0.73851218,111520.0,111500.0,0.45389858]
[1757048382310,1.06407609,111510.0,111500.0,0.47516858]
[1757048386316,1.06407609,111510.0,111500.0,0.39511]
[1757048388521,0.82876,111510.0,111500.0,0.39511]
[1757048388721,1.06407609,111510.0,111500.0,0.39511]
[1757048397426,1.06407609,111510.0,111500.0,0.47516858]
[1757048400417,1.06407609,111510.0,111500.0,0.39511]
[1757048400621,1.06407609,111510.0,111500.0,0.03431]
[1757048400918,1.32100609,111510.0,111490.0,0.45384858]
[1757048401123,0.25119609,111500.0,111490.0,0.47674858]
[1757048402230,0.25119609,111500.0,111490.0,0.47974858]
[1757048402431,0.26009804,111500.0,111490.0,0.47974858]
[1757048402931,0.25119609,111500.0,111490.0,0.47974858]
[1757048403127,0.25119609,111500.0,111490.0,0.39969]
[1757048403532,0.28066057,111500.0,111490.0,0.39969]
[1757048403929,0.28066057,111500.0,111490.0,0.39869]
[1757048404131,0.28066057,111500.0,111490.0,0.39969]
[1757048409234,0.01588,111500.0,111490.0,0.39969]
[1757048409430,0.28066057,111500.0,111490.0,0.39969]
[1757048411333,0.28066057,111500.0,111490.0,0.47974858]
[1757048412135,0.28066057,111500.0,111490.0,0.39969]
[1757048417738,0.28066057,111500.0,111490.0,0.03889]
[1757048418042,0.28066057,111500.0,111490.0,0.39969]
[1757048422047,0.01588,111500.0,111490.0,0.39969]
[1757048422249,0.28066057,111500.0,111490.0,0.39969]
[1757048425557,0.28066057,111500.0,111490.0,0.47974858]
[1757048426054,1.09342057,111500.0,111490.0,0.47974858]
[1757048426259,1.09342057,111500.0,111490.0,0.39969]
[1757048428353,1.09342057,111500.0,111490.0,0.47974858]
[1757048428653,0.82864,111500.0,111490.0,0.47974858]
[1757048428857,1.09342057,111500.0,111490.0,0.47974858]
[1757048431271,0.82864,111500.0,111490.0,0.47974858]
[1757048431473,1.09342057,111500.0,111490.0,0.47974858]
[1757048433470,1.99327814,111500.0,111480.0,0.01336]
[1757048433665,0.90624114,111490.0,111480.0,0.03496]
[1757048433968,0.64146057,111490.0,111480.0,0.03496]
[1757048434468,0.90624114,111490.0,111480.0,0.03496]
[1757048434666,1.15924114,111490.0,111470.0,0.01363]
[1757048434870,1.72008114,111480.0,111470.0,0.03523]
[1757048435063,1.72008114,111480.0,111470.0,0.03513]
[1757048435471,0.90624114,111480.0,111470.0,0.03513]
[1757048435768,1.45542057,111480.0,111470.0,0.03513]
[1757048436170,1.45542057,111480.0,111470.0,0.03713]
[1757048436369,0.64146057,111480.0,111470.0,0.03713]
[1757048436569,1.45546057,111480.0,111470.0,0.03713]
[1757048437869,1.19068,111480.0,111470.0,0.03713]
[1757048438073,1.45534057,111480.0,111470.0,0.03713]
[1757048440772,0.3608,111480.0,111470.0,0.28713]
[1757048440974,0.3608,111480.0,111470.0,0.55191057]
[1757048441365,0.62558057,111480.0,111470.0,0.55191057]
[1757048442073,0.64146057,111480.0,111470.0,0.28713]
[1757048442273,0.64146057,111480.0,111470.0,0.55191057]
[1757048443576,0.62558057,111480.0,111470.0,0.55191057]
[1757048444378,0.3608,111480.0,111470.0,0.55191057]
[1757048444580,0.3608,111480.0,111470.0,0.91191057]
[1757048444771,0.3608,111480.0,111470.0,0.86191057]
[1757048444968,1.07856057,111490.0,111480.0,0.03602]
[1757048445176,1.07856057,111490.0,111480.0,0.30080057]
[1757048445177,0.81368,111490.0,111480.0,0.30080057]
[1757048445378,2.95520057,111500.0,111490.0,0.0135]
[1757048445678,2.95510057,111500.0,111490.0,0.03602]
[1757048446076,1.45510057,111500.0,111490.0,0.03602]
[1757048447184,1.45710057,111500.0,111490.0,0.30080057]
[1757048447382,1.45710057,111500.0,111490.0,0.03602]
[1757048448482,1.45742057,111500.0,111490.0,0.03602]
[1757048448685,1.45942057,111500.0,111490.0,0.03602]
[1757048448887,0.64546057,111500.0,111490.0,0.03602]
[1757048449183,1.45942057,111500.0,111490.0,0.03602]
[1757048449381,1.19464,111500.0,111490.0,0.03602]
[1757048449584,1.45942057,111500.0,111490.0,0.03602]
[1757048450484,1.45938057,111500.0,111490.0,0.03602]
[1757048451174,0.64546057,111500.0,111490.0,0.03602]
[1757048451376,1.45934057,111500.0,111490.0,0.03602]
[1757048452784,0.64546057,111500.0,111490.0,0.03602]
[1757048452986,1.45942057,111500.0,111490.0,0.03602]
[1757048453786,1.45938057,111500.0,111490.0,0.03602]
[1757048460392,1.1946,111500.0,111490.0,0.03602]
[1757048460585,1.45938057,111500.0,111490.0,0.03602]
[1757048460984,1.70938057,111500.0,111490.0,0.03602]
[1757048461292,1.45938057,111500.0,111490.0,0.03602]
[1757048463004,1.70938057,111500.0,111480.0,0.0135]
[1757048463190,0.64146057,111490.0,111480.0,0.03602]
[1757048463592,0.61210444,111490.0,111480.0,0.03602]
[1757048464300,0.37668,111490.0,111480.0,0.03602]
[1757048464493,0.37768,111490.0,111480.0,0.03602]
[1757048464995,0.01688,111490.0,111480.0,0.03602]
[1757048465197,0.83152,111490.0,111480.0,0.03602]
[1757048465695,1.19232,111490.0,111480.0,0.03602]
[1757048465989,0.83152,111490.0,111480.0,0.03602]
[1757048466196,1.19232,111490.0,111480.0,0.03602]
[1757048466384,0.83152,111490.0,111480.0,0.03602]
[1757048466998,1.19232,111490.0,111480.0,0.03602]
[1757048467792,0.83152,111490.0,111480.0,0.03602]
[1757048468097,1.19232,111490.0,111480.0,0.03602]
[1757048469405,0.83152,111490.0,111480.0,0.03602]
[1757048469798,1.19232,111490.0,111480.0,0.03602]
[1757048471704,0.83152,111490.0,111480.0,0.03602]
[1757048471903,1.19232,111490.0,111480.0,0.03602]
[1757048472104,0.83152,111490.0,111480.0,0.03602]
[1757048473905,0.83168,111490.0,111480.0,0.03602]
[1757048474408,0.002,111490.0,111480.0,0.28602]
[1757048475305,0.01788,111490.0,111480.0,0.28602]
[1757048475505,0.37868,111490.0,111480.0,0.28602]
[1757048475808,0.01788,111490.0,111480.0,0.28602]
[1757048478012,0.002,111490.0,111480.0,0.28602]
[1757048480012,0.01788,111490.0,111480.0,0.28602]
[1757048481308,0.61410444,111490.0,111480.0,0.28602]
[1757048482712,0.37868,111490.0,111480.0,0.28602]
[1757048483011,0.61410444,111490.0,111480.0,0.28602]
[1757048485526,0.37868,111490.0,111480.0,0.28602]
[1757048487312,0.002,111490.0,111480.0,0.52144444]
[1757048487814,0.002,111490.0,111480.0,0.28602]
[1757048489218,0.01788,111490.0,111480.0,0.28602]
[1757048497324,0.37868,111490.0,111480.0,0.28602]
[1757048497821,0.01788,111490.0,111480.0,0.28602]
[1757048498022,0.37868,111490.0,111480.0,0.28602]
[1757048498229,0.01788,111490.0,111480.0,0.28602]
[1757048499830,0.002,111490.0,111480.0,0.27144444]
[1757048500130,0.002,111490.0,111480.0,0.63224444]
[1757048501238,0.002,111490.0,111480.0,0.74501052]
[1757048502140,0.002,111490.0,111480.0,0.65224444]
[1757048502535,0.002,111490.0,111480.0,1.00224444]
[1757048502729,0.002,111490.0,111480.0,0.76682]
[1757048502934,0.002,111490.0,111480.0,1.00224444]
[1757048503235,0.002,111490.0,111480.0,1.09193744]
[1757048503540,0.0001,111500.0,111490.0,0.03443]
[1757048503741,0.01918,111510.0,111500.0,0.03443]
[1757048503930,0.01908,111510.0,111500.0,0.03443]
[1757048504239,0.62426075,111520.0,111510.0,0.03443]
[1757048504440,0.62416075,111520.0,111510.0,0.03443]
[1757048504941,0.61530444,111520.0,111510.0,0.03443]
[1757048506230,0.61630444,111520.0,111510.0,0.03443]
[1757048506429,0.61730444,111520.0,111510.0,0.03443]
[1757048507042,0.02108,111520.0,111510.0,0.03443]
[1757048507538,0.38188,111520.0,111510.0,0.03443]
[1757048508549,0.61730444,111520.0,111510.0,0.03443]
[1757048509044,0.38188,111520.0,111510.0,0.03443]
[1757048509445,0.02108,111520.0,111510.0,0.03443]
[1757048510247,0.61730444,111520.0,111510.0,0.03443]
[1757048515641,1.10272888,111520.0,111500.0,0.0127]
[1757048515836,1.06990444,111510.0,111500.0,0.03517]
[1757048516048,0.83448,111510.0,111500.0,0.03517]
[1757048516447,1.06990444,111510.0,111500.0,0.03517]
[1757048518846,0.25450444,111510.0,111500.0,0.03517]
[1757048525557,0.54864534,111510.0,111500.0,0.03517]
[1757048527463,0.90944534,111510.0,111500.0,0.03517]
[1757048527666,0.90944534,111510.0,111490.0,0.03079963]
[1757048527961,0.28386267,111500.0,111490.0,0.05326963]
[1757048528962,0.28386267,111500.0,111490.0,0.05526963]
[1757048529860,0.02810363,111500.0,111490.0,0.05526963]
[1757048530060,0.2928863,111500.0,111490.0,0.05526963]
[1757048530367,0.28386267,111500.0,111490.0,0.05526963]
[1757048534269,0.29283415,111500.0,111490.0,0.05526963]
[1757048535663,0.28386267,111500.0,111490.0,0.05526963]
[1757048537560,0.01908,111500.0,111490.0,0.05526963]
[1757048537762,0.28386267,111500.0,111490.0,0.05526963]
[1757048538065,0.28386267,111500.0,111490.0,0.3200523]
[1757048538664,0.62568267,111510.0,111490.0,0.3200523]
[1757048538665,0.64476267,111510.0,111500.0,0.03639]
[1757048538860,0.64466267,111510.0,111500.0,0.30117267]
[1757048539265,0.64476267,111520.0,111510.0,0.03639]
[1757048539464,1.46078267,111520.0,111510.0,0.03639]
[1757048539665,0.64466267,111520.0,111510.0,0.30117267]
[1757048540066,0.64466267,111520.0,111510.0,0.03639]
[1757048540360,0.37988,111520.0,111510.0,0.03639]
[1757048540565,0.37998,111530.0,111520.0,0.03639]
[1757048540767,1.46066267,111530.0,111520.0,0.03639]
[1757048541069,0.64466267,111530.0,111520.0,0.03639]
[1757048541262,1.46066267,111530.0,111520.0,0.03639]
[1757048541460,0.64466267,111530.0,111520.0,0.03639]
[1757048541664,1.46086267,111530.0,111520.0,0.03639]
[1757048541981,1.46286267,111530.0,111520.0,0.03639]
[1757048542466,0.64666267,111530.0,111520.0,0.03639]
[1757048542765,1.46582267,111530.0,111520.0,0.03639]
[1757048543065,1.46574267,111530.0,111520.0,0.03639]
[1757048543466,1.46570267,111530.0,111520.0,0.03639]
[1757048544171,1.46566267,111530.0,111520.0,0.03639]
[1757048544363,0.64966267,111530.0,111520.0,0.03639]
[1757048544564,1.46566267,111530.0,111520.0,0.03639]
[1757048544867,1.46562267,111530.0,111520.0,0.03639]
[1757048545368,0.64966267,111530.0,111520.0,0.03639]
[1757048545558,1.46562267,111530.0,111520.0,0.03639]
[1757048545762,1.10482267,111530.0,111520.0,0.03639]
[1757048545965,1.46562267,111530.0,111520.0,0.03639]
[1757048547170,1.46562267,111530.0,111510.0,0.01331]
[1757048547372,0.28386267,111520.0,111510.0,0.03639]
[1757048549179,0.28486267,111520.0,111510.0,0.03639]
[1757048550308,0.02008,111520.0,111510.0,0.03639]
[1757048550469,0.28486267,111520.0,111510.0,0.03639]
[1757048550669,0.28586267,111520.0,111510.0,0.03639]
[1757048551874,1.10198267,111520.0,111510.0,0.03639]
[1757048553376,0.28586267,111520.0,111510.0,0.03639]
[1757048553575,1.10190267,111520.0,111510.0,0.03639]
[1757048559573,1.46270267,111520.0,111500.0,0.01331]
[1757048559772,0.28386267,111510.0,111500.0,0.03639]
[1757048564183,0.29271046,111510.0,111500.0,0.03639]
[1757048564680,0.91829313,111510.0,111500.0,0.03639]
[1757048565779,0.64466267,111510.0,111500.0,0.03639]
[1757048566180,1.46014267,111510.0,111500.0,0.03639]
[1757048567489,1.46933477,111510.0,111500.0,0.03639]
[1757048567986,1.46014267,111510.0,111500.0,0.03639]
[1757048569683,1.46932321,111510.0,111500.0,0.03639]
[1757048573994,1.73410588,111510.0,111500.0,0.03639]
[1757048576593,1.98410588,111510.0,111490.0,0.03079963]
[1757048576900,0.28386267,111500.0,111490.0,0.10364963]
[1757048577699,0.64466267,111500.0,111490.0,0.10364963]
[1757048577898,0.64466267,111500.0,111490.0,0.10464963]
[1757048578099,0.64466267,111500.0,111490.0,0.03655]
[1757048578602,0.64466267,111500.0,111490.0,0.03755]
[1757048579807,0.37988,111500.0,111490.0,0.03755]
[1757048580002,0.64466267,111500.0,111490.0,0.03755]
[1757048586506,0.64466267,111500.0,111490.0,0.0147]
[1757048586924,0.64466267,111500.0,111490.0,0.03755]
[1757048587508,0.61529664,111500.0,111490.0,0.03755]
[1757048589109,0.61529664,111500.0,111490.0,0.001]
[1757048589310,0.61629664,111500.0,111490.0,0.001]
[1757048590110,0.61729664,111500.0,111480.0,0.03140963]
[1757048590409,0.25449664,111490.0,111480.0,0.09425963]
[1757048590598,1.06965664,111490.0,111480.0,0.09425963]
[1757048592208,0.25449664,111490.0,111480.0,0.09425963]
[1757048592612,0.01908,111490.0,111480.0,0.09425963]
[1757048603012,1.17538,111500.0,111480.0,0.09425963]
[1757048603223,1.17538,111500.0,111490.0,0.0355]
[1757048603224,0.37998,111500.0,111490.0,0.0355]
[1757048603419,0.37988,111500.0,111490.0,0.0355]
[1757048604319,0.38088,111500.0,111490.0,0.0355]
[1757048605224,0.38188,111500.0,111490.0,0.0355]
[1757048613930,0.002,111500.0,111490.0,0.3963]
[1757048614726,0.02108,111500.0,111490.0,0.0355]
[1757048615426,0.02008,111500.0,111490.0,0.0355]
[1757048628136,0.38088,111500.0,111490.0,0.0355]
[1757048633744,0.02008,111500.0,111490.0,0.0355]
[1757048634042,0.38088,111500.0,111490.0,0.0355]
[1757048641652,0.001,111500.0,111490.0,0.3963]
[1757048643055,0.02008,111500.0,111490.0,0.3963]
[1757048644457,0.001,111500.0,111490.0,0.3963]
[1757048645055,0.02008,111500.0,111490.0,0.3963]
[1757048660173,0.001,111500.0,111490.0,0.3608]
[1757048665272,0.02008,111500.0,111490.0,0.39644]
[1757048667179,0.38088,111500.0,111490.0,0.03564]
[1757048710209,0.38088,111500.0,111490.0,0.01263]
[1757048711222,0.38088,111500.0,111490.0,0.03561]
[1757048714723,0.38088,111500.0,111480.0,0.01263]
[1757048714926,0.38098,111500.0,111480.0,0.01263]
[1757048715224,0.38098,111500.0,111490.0,0.02298]
[1757048715523,0.38088,111500.0,111490.0,0.03563]
[1757048716019,0.37988,111500.0,111490.0,0.01265]
[1757048716223,0.38088,111500.0,111480.0,0.01263]
[1757048716419,0.38098,111500.0,111480.0,0.01263]
[1757048717025,0.3608,111490.0,111480.0,0.03528]
[1757048717326,0.37988,111490.0,111480.0,0.03528]
[1757048718225,0.38088,111490.0,111480.0,0.03528]
[1757048718619,0.38188,111490.0,111480.0,0.03528]
[1757048722134,0.38188,111490.0,111470.0,0.14374246]
[1757048722333,0.37988,111480.0,111470.0,0.05362638]
[1757048722535,0.37988,111480.0,111470.0,0.05352638]
[1757048735838,0.38188,111480.0,111470.0,0.05352638]
[1757048736855,0.38388,111480.0,111470.0,0.05352638]
[1757048743854,0.38388,111480.0,111470.0,0.03528]
[1757048762570,0.02308,111480.0,111470.0,0.03528]
[1757048762764,0.02308,111480.0,111470.0,0.28528]
[1757048762765,0.004,111480.0,111470.0,0.28528]
[1757048762965,0.004,111480.0,111470.0,0.64608]
[1757048765270,0.003,111480.0,111470.0,0.64608]
[1757048765578,0.002,111480.0,111470.0,0.64608]
[1757048768373,0.002,111480.0,111470.0,1.9131812]
[1757048769083,0.002,111480.0,111470.0,2.02594728]
[1757048769767,0.001,111480.0,111470.0,2.02594728]
[1757048770066,0.001,111480.0,111470.0,1.9131812]
[1757048770267,0.0001,111490.0,111480.0,0.0357]
[1757048770469,0.01918,111500.0,111490.0,0.0357]
[1757048770662,0.01908,111500.0,111490.0,0.3965]
[1757048770865,0.01908,111500.0,111490.0,0.40529157]
[1757048771065,0.37998,111510.0,111500.0,0.0357]
[1757048771274,0.37988,111510.0,111500.0,0.0357]
[1757048772072,0.01908,111510.0,111500.0,0.0357]
[1757048772474,0.01908,111510.0,111500.0,0.05411009]
[1757048773178,0.02308,111510.0,111500.0,0.05411009]
[1757048774778,0.004,111510.0,111500.0,0.05411009]
[1757048774973,0.004,111510.0,111500.0,0.42411009]
[1757048775179,0.004,111510.0,111500.0,1.12458709]
[1757048776078,0.002,111510.0,111500.0,1.12458709]
[1757048776272,0.01918,111520.0,111510.0,0.03558]
[1757048776472,0.01908,111520.0,111510.0,0.03558]
[1757048777480,0.02108,111520.0,111510.0,0.03558]
[1757048777874,0.02308,111520.0,111510.0,0.03558]
[1757048778185,0.02308,111520.0,111510.0,0.05558]
[1757048779183,0.02308,111520.0,111510.0,0.03558]
[1757048779882,0.02308,111520.0,111510.0,0.39638]
[1757048780282,0.02308,111520.0,111510.0,0.71638]
[1757048780480,0.02308,111520.0,111510.0,0.41638]
[1757048780983,0.02308,111520.0,111510.0,0.77638]
[1757048781176,0.02308,111520.0,111510.0,0.41638]
[1757048781382,0.02308,111520.0,111510.0,0.39638]
[1757048781576,0.02308,111520.0,111510.0,0.41638]
[1757048781782,0.02308,111520.0,111510.0,0.39638]
[1757048782489,0.02308,111520.0,111510.0,0.72638]
[1757048782789,0.02308,111520.0,111510.0,0.76638]
[1757048783286,0.02308,111520.0,111510.0,0.72638]
[1757048783486,0.02308,111520.0,111510.0,0.41638]
[1757048783888,0.02308,111520.0,111510.0,0.71638]
[1757048784087,0.02308,111520.0,111510.0,0.75638]
[1757048784688,0.02308,111520.0,111510.0,0.72638]
[1757048784985,0.02308,111520.0,111510.0,0.41638]
[1757048786896,0.02308,111520.0,111510.0,0.75638]
[1757048787190,0.02308,111520.0,111510.0,0.41638]
[1757048787984,0.0001,111530.0,111520.0,0.03558]
[1757048788290,0.0001,111540.0,111530.0,0.03558]
[1757048788585,0.3609,111550.0,111530.0,0.03558]
[1757048788586,0.38233,111550.0,111540.0,0.03558]
[1757048788787,0.38223,111550.0,111540.0,0.03558]
[1757048789883,0.38623,111550.0,111540.0,0.03558]
[1757048790286,0.39223,111550.0,111540.0,0.03558]
[1757048790684,0.40116439,111550.0,111540.0,0.03558]
[1757048791687,0.39516439,111550.0,111540.0,0.03558]
[1757048792192,0.39116439,111550.0,111540.0,0.03558]
[1757048792694,0.39116439,111550.0,111540.0,0.10558195]
[1757048802095,0.38223,111550.0,111540.0,0.10558195]
[1757048803703,0.38223,111550.0,111540.0,0.10558195]
[1757048804296,0.40588375,111550.0,111540.0,0.10558195]
[1757048804699,0.38223,111550.0,111540.0,0.10558195]
[1757048805096,0.02269,111550.0,111540.0,0.10558195]
[1757048805399,0.03178757,111560.0,111550.0,0.03556]
[1757048805599,0.03168757,111560.0,111550.0,0.03556]
[1757048806000,0.02269,111560.0,111550.0,0.03556]
[1757048806590,0.02469,111560.0,111550.0,0.03556]
[1757048806993,0.02769,111560.0,111550.0,0.03556]
[1757048807197,0.005,111560.0,111550.0,0.67353232]
[1757048807403,0.005,111560.0,111550.0,1.03433232]
[1757048808493,0.005,111560.0,111550.0,1.85013232]
[1757048808907,0.005,111560.0,111550.0,1.03433232]
[1757048809099,0.005,111560.0,111550.0,1.85013232]
[1757048809897,0.005,111560.0,111550.0,1.84997232]
[1757048810699,0.005,111560.0,111550.0,1.85101232]
[1757048812202,0.005,111560.0,111550.0,1.85117232]
[1757048814997,0.005,111560.0,111550.0,1.60117232]
[1757048817908,0.005,111560.0,111550.0,0.78433232]
[1757048817909,0.02769,111560.0,111550.0,0.78433232]
[1757048818202,0.02769,111560.0,111550.0,1.60149232]
[1757048823014,0.005,111560.0,111550.0,1.60149232]
[1757048826308,0.005,111560.0,111550.0,1.8365487]